bitfinex-derivatives/quotes_SOLF0:USTF0_20250501
["timestamp","ask_amount","ask_price","bid_price","bid_amount"]
[1746066432661,6.6862,149.56,149.52,6.6875]
[1746066432859,6.6864,149.55,149.52,6.6875]
[1746066433261,7.04539547,149.57,149.52,6.6875]
[1746066433457,6.6861,149.56,149.52,6.6875]
[1746066434763,6.6864,149.55,149.51,6.688]
[1746066436261,6.6864,149.55,149.52,6.6876]
[1746066436468,6.686,149.56,149.52,6.6876]
[1746066438466,6.6864,149.55,149.52,6.6876]
[1746066438958,7.04539547,149.57,149.52,6.6876]
[1746066439967,6.6863,149.56,149.52,6.6876]
[1746066440565,6.6865,149.55,149.52,6.6876]
[1746066441769,6.6872,149.53,149.5,1.9355]
[1746066441966,30.86539547,149.57,149.49,30.5088]
[1746066442370,6.6875,149.53,149.49,30.5088]
[1746066443676,6.6878,149.52,149.49,30.5088]
[1746066445870,6.6874,149.53,149.49,30.5088]
[1746066447071,6.6878,149.52,149.49,30.5088]
[1746066449971,6.6878,149.52,149.49,23.82]
[1746066450674,6.6878,149.52,149.49,30.5089]
[1746066453279,6.6881,149.51,149.49,23.82]
[1746066455674,6.689,149.49,149.46,6.6902]
[1746066455882,6.689,149.49,149.46,30.5102]
[1746066456478,6.6888,149.5,149.47,6.6899]
[1746066456879,6.6888,149.5,149.46,30.5101]
[1746066457179,6.6891,149.49,149.46,30.5101]
[1746066457880,6.6888,149.5,149.46,30.5101]
[1746066458981,6.6888,149.5,149.47,6.6898]
[1746066462277,6.6879,149.52,149.49,6.689]
[1746066462676,6.6879,149.52,149.46,23.82]
[1746066462880,7.04539547,149.54,149.46,23.82]
[1746066463082,6.6882,149.51,149.48,6.6892]
[1746066464983,6.6878,149.52,149.49,6.689]
[1746066466586,6.6881,149.51,149.49,6.689]
[1746066466781,6.6881,149.51,149.48,6.6893]
[1746066468286,6.6887,149.5,149.47,6.6898]
[1746066469187,6.6887,149.5,149.48,6.6893]
[1746066469486,6.6883,149.51,149.48,6.6893]
[1746066471988,6.6879,149.52,149.46,23.82]
[1746066472186,7.04539547,149.54,149.46,23.82]
[1746066473191,6.6876,149.53,149.49,6.6887]
[1746066473392,7.04539547,149.54,149.46,23.82]
[1746066475201,6.6877,149.52,149.46,23.82]
[1746066475800,6.6877,149.52,149.49,6.6888]
[1746066476102,6.6877,149.52,149.46,23.82]
[1746066477201,6.6877,149.52,149.49,6.6887]
[1746066478703,6.6874,149.53,149.49,6.6887]
[1746066479804,6.6874,149.53,149.5,6.6884]
[1746066480308,13.73239547,149.54,149.51,6.688]
[1746066485509,4.51063888,149.53,149.51,6.688]
[1746066488513,11.19793888,149.53,149.5,6.6885]
[1746066489416,11.19793888,149.53,149.51,6.688]
[1746066489615,4.51063888,149.53,149.51,6.688]
[1746066491215,11.19793888,149.53,149.51,6.688]
[1746066491416,4.51063888,149.53,149.52,6.6877]
[1746066494221,4.51063888,149.57,149.55,6.6863]
[1746066494814,4.51063888,149.57,149.56,6.6859]
[1746066495419,4.51063888,149.57,149.55,6.6861]
[1746066497521,6.6853,149.58,149.55,6.6861]
[1746066498625,6.6855,149.57,149.55,6.6861]
[1746066499024,32.85590584,149.6,149.55,6.6861]
[1746066499225,6.6853,149.58,149.55,6.6861]
[1746066500422,6.6855,149.57,149.55,6.6861]
[1746066500824,6.6855,149.57,149.54,6.6866]
[1746066504214,6.6861,149.56,149.54,6.6866]
[1746066504725,6.6867,149.55,149.52,23.84]
[1746066505724,6.6867,149.55,149.52,30.5273]
[1746066506226,7.04400584,149.57,149.52,23.84]
[1746066506526,7.04400584,149.57,149.51,6.6879]
[1746066506725,6.6875,149.53,149.5,6.6884]
[1746066507526,6.6869,149.54,149.51,6.688]
[1746066508423,6.6874,149.53,149.5,6.6884]
[1746066510724,23.84,149.56,149.48,27.8655]
[1746066511028,6.688,149.52,149.48,23.84]
[1746066511229,6.688,149.52,149.49,6.6888]
[1746066511932,6.688,149.52,149.5,6.6885]
[1746066512326,6.688,149.52,149.48,23.84]
[1746066512926,6.688,149.52,149.49,6.6887]
[1746066513430,6.688,149.52,149.5,6.6886]
[1746066514937,6.688,149.52,149.49,6.6888]
[1746066516631,6.688,149.52,149.5,6.6886]
[1746066516831,6.688,149.52,149.48,23.84]
[1746066517332,6.688,149.52,149.49,6.6889]
[1746066521333,6.6881,149.51,149.48,30.5293]
[1746066521534,6.6881,149.51,149.48,23.84]
[1746066523140,11.19927677,149.52,149.49,6.689]
[1746066525238,6.6881,149.51,149.49,6.689]
[1746066528544,11.19927677,149.52,149.49,6.689]
[1746066529952,6.6879,149.52,149.49,6.689]
[1746066530146,11.19927677,149.52,149.49,6.689]
[1746066530540,11.19927677,149.52,149.5,6.6886]
[1746066531142,11.19927677,149.52,149.49,6.6888]
[1746066532142,11.19867677,149.53,149.5,6.6885]
[1746066532644,6.6873,149.53,149.5,6.6885]
[1746066532844,11.19867677,149.53,149.5,6.6885]
[1746066534147,6.687,149.54,149.52,6.6877]
[1746066534352,23.84,149.59,149.52,6.6877]
[1746066534545,4.51137677,149.55,149.52,6.6877]
[1746066534845,4.51137677,149.55,149.48,32.24847677]
[1746066535048,6.6869,149.54,149.51,6.6879]
[1746066535242,6.6869,149.54,149.48,32.24847677]
[1746066535548,6.6869,149.54,149.51,6.6877]
[1746066535746,6.6869,149.54,149.48,32.24847677]
[1746066536048,6.6869,149.54,149.51,6.6879]
[1746066536648,4.51137677,149.53,149.51,6.6879]
[1746066537349,11.19867677,149.53,149.5,6.6884]
[1746066540249,6.6878,149.52,149.5,6.6884]
[1746066540944,11.19877677,149.53,149.5,6.6884]
[1746066545047,11.19877677,149.53,149.51,6.688]
[1746066546252,11.19877677,149.53,149.5,6.6884]
[1746066548559,4.51137677,149.53,149.51,6.6878]
[1746066549355,4.51137677,149.53,149.52,6.6877]
[1746066550553,6.6865,149.55,149.52,6.6877]
[1746066550858,4.51137677,149.55,149.53,6.687]
[1746066551357,4.51137677,149.55,149.52,6.6875]
[1746066551961,11.19797677,149.55,149.52,6.6875]
[1746066552768,4.51137677,149.55,149.53,6.6871]
[1746066554171,30.5261,149.56,149.53,6.6871]
[1746066554370,4.51137677,149.55,149.54,6.6867]
[1746066554567,4.51137677,149.55,149.49,4.51137677]
[1746066555269,4.51137677,149.55,149.53,6.6869]
[1746066558171,4.51137677,149.55,149.54,6.6868]
[1746066558671,4.51137677,149.55,149.49,4.51137677]
[1746066560171,4.51137677,149.55,149.53,6.6871]
[1746066562672,4.51137677,149.55,149.54,6.6868]
[1746066564173,4.51137677,149.55,149.49,4.51137677]
[1746066565078,4.51137677,149.55,149.53,6.687]
[1746066565874,11.19777677,149.55,149.53,6.687]
[1746066566074,4.51137677,149.55,149.53,6.687]
[1746066568176,11.19797677,149.55,149.49,4.51137677]
[1746066568773,11.19797677,149.55,149.52,6.6875]
[1746066569171,11.19797677,149.55,149.49,4.51137677]
[1746066570174,11.19797677,149.55,149.53,6.6871]
[1746066570473,4.51137677,149.55,149.53,6.6871]
[1746066573680,11.19777677,149.55,149.53,6.6871]
[1746066573881,11.19777677,149.55,149.52,6.6875]
[1746066574178,6.687,149.54,149.48,27.7507]
[1746066574367,6.687,149.54,149.51,6.6878]
[1746066574679,6.687,149.54,149.48,27.7507]
[1746066574877,6.687,149.54,149.51,6.6878]
[1746066576681,6.687,149.54,149.52,6.6877]
[1746066577077,4.51137677,149.55,149.49,4.51137677]
[1746066577278,4.51137677,149.56,149.49,4.51137677]
[1746066578182,11.19757677,149.56,149.53,6.687]
[1746066578382,4.51137677,149.56,149.53,6.687]
[1746066578683,11.19747677,149.56,149.53,6.687]
[1746066580685,6.6865,149.55,149.53,6.687]
[1746066581687,11.19747677,149.56,149.53,6.687]
[1746066582288,4.51137677,149.56,149.52,6.6875]
[1746066582486,4.51137677,149.54,149.52,6.6875]
[1746066582693,4.51137677,149.54,149.48,27.7507]
[1746066582889,11.19847677,149.54,149.51,6.6878]
[1746066583089,4.51137677,149.54,149.51,6.6878]
[1746066583486,4.51137677,149.52,149.38,80.3286574]
[1746066583689,4.51137677,149.46,149.39,30.00347207]
[1746066583992,4.51137677,149.47,149.41,4.51137677]
[1746066584392,4.51137677,149.47,149.43,6.6914]
[1746066584780,4.51137677,149.47,149.41,4.51137677]
[1746066585491,11.20157677,149.47,149.42,6.6918]
[1746066585993,11.20157677,149.47,149.43,6.6916]
[1746066586990,11.20157677,149.47,149.44,6.6913]
[1746066587288,4.51137677,149.47,149.44,6.6913]
[1746066587694,6.6897,149.48,149.44,6.6913]
[1746066587994,30.4892,149.49,149.43,28.33137677]
[1746066588195,30.4892,149.49,149.44,1.9892]
[1746066588792,30.4892,149.49,149.45,6.6905]
[1746066589095,30.4892,149.49,149.44,1.9892]
[1746066589593,6.6892,149.49,149.44,1.9892]
[1746066589997,6.6892,149.49,149.46,6.69]
[1746066590293,4.51137677,149.5,149.44,1.9892]
[1746066590795,4.51137677,149.5,149.47,6.6898]
[1746066591494,11.20017677,149.5,149.47,6.6898]
[1746066592994,6.6883,149.51,149.48,6.6894]
[1746066593196,11.19967677,149.51,149.48,6.6894]
[1746066593393,4.51137677,149.51,149.44,1.9892]
[1746066593594,11.19967677,149.51,149.44,1.9892]
[1746066593795,4.51137677,149.49,149.44,1.9892]
[1746066594194,4.51137677,149.49,149.45,6.6906]
[1746066594395,4.51137677,149.49,149.44,1.9892]
[1746066594596,4.51137677,149.47,149.44,1.9892]
[1746066594799,4.51137677,149.47,149.44,8.6802]
[1746066597198,11.20137677,149.47,149.44,8.6802]
[1746066599103,4.51137677,149.47,149.44,8.6802]
[1746066599796,4.51137677,149.47,149.45,6.6907]
[1746066600006,4.51137677,149.47,149.44,1.9892]
[1746066600394,4.51137677,149.45,149.4,23.82]
[1746066600796,11.20257677,149.45,149.42,6.6921]
[1746066601203,4.51137677,149.45,149.4,23.82]
[1746066601604,4.51137677,149.45,149.4,28.33137677]
[1746066601802,4.51137677,149.47,149.4,28.33137677]
[1746066602501,11.20157677,149.47,149.4,28.33137677]
[1746066603405,4.51137677,149.51,149.44,4.51137677]
[1746066603600,23.82,149.51,149.44,23.82]
[1746066603799,30.5083,149.51,149.48,6.6892]
[1746066604503,23.82,149.51,149.49,6.6887]
[1746066604894,1.9822,149.52,149.49,6.6887]
[1746066605101,6.6877,149.52,149.49,6.6887]
[1746066606202,6.6877,149.52,149.45,4.1281]
[1746066606403,4.1556,149.56,149.45,4.1281]
[1746066606607,4.1556,149.56,149.46,2.092]
[1746066606808,6.6866,149.55,149.51,6.6878]
[1746066607008,6.6866,149.55,149.49,23.82]
[1746066607314,6.6866,149.55,149.52,6.6874]
[1746066607508,23.82,149.57,149.49,23.82]
[1746066607901,30.5057,149.57,149.53,6.687]
[1746066608103,23.82,149.57,149.49,23.82]
[1746066608408,6.6863,149.56,149.52,6.6875]
[1746066609804,6.6864,149.55,149.52,6.6875]
[1746066610111,23.82,149.57,149.51,6.688]
[1746066610608,7.04988838,149.56,149.51,6.688]
[1746066611212,6.6869,149.54,149.51,6.688]
[1746066612710,6.6865,149.55,149.52,6.6877]
[1746066613916,13.73598838,149.56,149.52,6.6877]
[1746066614212,7.04988838,149.56,149.51,6.688]
[1746066614414,7.04988838,149.56,149.49,23.82]
[1746066614612,6.6867,149.55,149.49,23.82]
[1746066614813,6.6867,149.55,149.52,6.6876]
[1746066615211,6.6868,149.54,149.49,23.82]
[1746066615616,6.6868,149.54,149.51,6.6878]
[1746066615814,6.6866,149.55,149.49,23.82]
[1746066616113,6.6866,149.55,149.51,6.6878]
[1746066616413,6.6866,149.55,149.49,23.82]
[1746066617313,13.73588838,149.56,149.49,23.82]
[1746066617613,13.73588838,149.56,149.52,6.6873]
[1746066618113,6.686,149.56,149.49,23.82]
[1746066618310,30.5056,149.57,149.49,23.82]
[1746066619121,30.5056,149.57,149.53,6.687]
[1746066619315,6.6861,149.56,149.53,6.687]
[1746066620916,30.5055,149.57,149.49,23.82]
[1746066621116,30.5055,149.57,149.5,1.9543]
[1746066621417,30.5055,149.57,149.51,2.0476]
[1746066621606,30.5055,149.57,149.53,6.6868]
[1746066623120,30.5055,149.57,149.54,6.6868]
[1746066624033,6.686,149.56,149.53,6.687]
[1746066624829,23.82,149.57,149.51,8.7355]
[1746066625227,6.6868,149.55,149.51,8.7355]
[1746066625428,23.82,149.57,149.51,8.7355]
[1746066625831,6.6868,149.54,149.51,8.7355]
[1746066626931,6.6865,149.55,149.52,6.6877]
[1746066628534,6.6869,149.54,149.52,6.6877]
[1746066629134,23.82,149.57,149.51,2.0476]
[1746066629434,23.82,149.57,149.51,8.7354]
[1746066629633,6.687,149.54,149.51,8.7354]
[1746066629833,7.04988838,149.55,149.49,23.82]
[1746066630133,6.6879,149.52,149.49,6.6887]
[1746066631032,6.6879,149.52,149.47,2.1027]
[1746066631434,6.6879,149.52,149.49,6.6887]
[1746066633535,6.6881,149.51,149.49,6.6887]
[1746066633841,7.04988838,149.55,149.47,6.6897]
[1746066634137,2.1146,149.54,149.47,6.6897]
[1746066634431,6.6884,149.51,149.48,6.6894]
[1746066637040,6.6879,149.52,149.49,6.6889]
[1746066637539,6.6882,149.51,149.49,6.6889]
[1746066638441,6.6886,149.5,149.46,23.8]
[1746066639039,23.8,149.53,149.48,6.6894]
[1746066639835,6.6884,149.51,149.48,6.6894]
[1746066641540,6.6884,149.51,149.49,6.6889]
[1746066641741,6.6879,149.52,149.49,6.6889]
[1746066642244,6.6882,149.51,149.49,6.6889]
[1746066643045,6.6879,149.52,149.49,6.6889]
[1746066644243,30.4876,149.53,149.5,6.6885]
[1746066644437,23.8,149.53,149.5,6.6885]
[1746066644838,30.4877,149.53,149.5,6.6885]
[1746066648246,6.6877,149.52,149.5,6.6885]
[1746066648946,30.4874,149.53,149.5,6.6885]
[1746066652548,6.6874,149.53,149.5,6.6885]
[1746066652945,6.6869,149.54,149.47,2.0211]
[1746066654151,6.6869,149.54,149.5,6.6883]
[1746066654345,6.6873,149.53,149.5,6.6883]
[1746066654542,30.84988838,149.56,149.47,2.0211]
[1746066654748,30.84988838,149.56,149.48,6.6891]
[1746066654945,6.688,149.52,149.48,6.6891]
[1746066655351,6.688,149.52,149.49,6.689]
[1746066655651,4.51174757,149.51,149.49,6.689]
[1746066657551,6.688,149.52,149.49,6.689]
[1746066658752,6.6874,149.53,149.5,6.6885]
[1746066659947,13.73649809,149.54,149.51,6.688]
[1746066660353,7.04959809,149.54,149.46,23.8]
[1746066660655,6.6875,149.53,149.5,6.6883]
[1746066664757,6.6877,149.52,149.5,6.6883]
[1746066665358,6.6874,149.53,149.5,6.6883]
[1746066665556,7.04959809,149.54,149.5,6.6883]
[1746066665761,7.04959809,149.54,149.46,23.8]
[1746066665955,6.6882,149.51,149.46,23.8]
[1746066666257,6.6882,149.51,149.48,6.6892]
[1746066666455,23.8,149.52,149.46,23.8]
[1746066667255,6.6883,149.51,149.46,23.8]
[1746066668158,6.6883,149.51,149.48,6.6892]
[1746066671358,6.6883,149.51,149.49,6.689]
[1746066671659,6.6883,149.51,149.46,23.8]
[1746066671958,30.4878,149.52,149.49,6.6888]
[1746066672861,23.8,149.52,149.5,6.6886]
[1746066675256,23.8,149.52,149.51,6.6881]
[1746066675463,6.687,149.54,149.51,6.6881]
[1746066675762,30.4665,149.55,149.52,6.6877]
[1746066675959,7.04959809,149.57,149.46,23.8]
[1746066675960,25.7695,149.58,149.47,9.16129809]
[1746066676160,25.7695,149.58,149.48,1.9258]
[1746066676362,6.686,149.56,149.53,6.687]
[1746066677663,6.686,149.56,149.52,6.6875]
[1746066677963,7.04959809,149.57,149.47,25.8917]
[1746066678165,7.04959809,149.54,149.47,23.78]
[1746066678463,6.6877,149.52,149.47,23.78]
[1746066678863,6.6877,149.52,149.49,6.6888]
[1746066681269,28.29093947,149.53,149.47,23.78]
[1746066681459,23.78,149.53,149.47,23.78]
[1746066681660,7.04915149,149.52,149.45,2.0075]
[1746066682261,6.6895,149.49,149.45,8.6981]
[1746066682467,7.04915149,149.52,149.45,8.6981]
[1746066683166,6.6886,149.5,149.45,8.6981]
[1746066683366,7.04915149,149.52,149.45,8.6981]
[1746066683768,6.689,149.49,149.46,6.6902]
[1746066685068,6.6895,149.48,149.45,8.6982]
[1746066685461,30.82915149,149.49,149.41,25.8716]
[1746066685667,30.82915149,149.49,149.43,6.6915]
[1746066686267,30.82915149,149.49,149.42,6.6921]
[1746066686569,30.82915149,149.49,149.41,23.78]
[1746066686867,6.6911,149.45,149.41,6.6923]
[1746066687366,30.82915149,149.49,149.41,6.6923]
[1746066687967,6.6911,149.45,149.41,6.6923]
[1746066688169,6.6911,149.45,149.42,6.6921]
[1746066689869,6.6911,149.45,149.41,6.6924]
[1746066690171,7.04915149,149.46,149.39,3.871]
[1746066690469,23.78,149.45,149.39,8.6003]
[1746066690662,25.7162,149.45,149.39,8.6003]
[1746066690864,6.6921,149.43,149.39,8.6003]
[1746066691063,25.7162,149.45,149.39,1.907]
[1746066691365,6.6915,149.44,149.39,1.907]
[1746066691771,32.4071,149.45,149.39,1.907]
[1746066691965,23.78,149.45,149.39,1.907]
[1746066692267,23.78,149.45,149.42,6.6919]
[1746066693170,30.4709,149.45,149.42,6.6919]
[1746066694171,6.6913,149.44,149.41,6.6924]
[1746066695370,6.692,149.43,149.4,6.6929]
[1746066697773,6.6915,149.44,149.41,6.6926]
[1746066698773,6.6918,149.43,149.4,6.693]
[1746066698974,23.78,149.45,149.4,6.693]
[1746066699178,23.78,149.45,149.35,27.8504]
[1746066700175,6.6917,149.44,149.4,6.6928]
[1746066700568,6.6917,149.44,149.35,27.8504]
[1746066701875,6.6917,149.44,149.41,6.6922]
[1746066702069,23.78,149.45,149.35,27.8504]
[1746066702371,23.78,149.45,149.41,6.6924]
[1746066702676,6.6913,149.44,149.41,6.6924]
[1746066702976,23.78,149.45,149.42,6.6921]
[1746066703172,23.78,149.48,149.39,23.78]
[1746066703470,23.78,149.48,149.4,6.0506]
[1746066703670,30.4698,149.48,149.45,6.6907]
[1746066704071,23.78,149.48,149.4,6.0506]
[1746066704264,6.6902,149.47,149.44,6.6913]
[1746066705973,6.6902,149.47,149.43,6.6915]
[1746066706175,23.78,149.48,149.4,6.0506]
[1746066706876,6.6906,149.46,149.43,6.6917]
[1746066711675,6.6908,149.45,149.42,6.692]
[1746066714074,7.04915149,149.47,149.4,4.1447]
[1746066714373,7.04915149,149.47,149.4,2.0825]
[1746066714576,7.04915149,149.47,149.4,8.7753]
[1746066715178,6.6917,149.44,149.4,8.7753]
[1746066715479,6.6917,149.44,149.41,6.6925]
[1746066715776,6.6923,149.42,149.39,6.6932]
[1746066716173,30.82915149,149.44,149.36,23.78]
[1746066716678,6.692,149.43,149.39,6.6932]
[1746066716980,6.692,149.43,149.36,23.78]
[1746066717873,6.692,149.43,149.39,6.6932]
[1746066718581,6.6923,149.42,149.39,6.6932]
[1746066719181,6.6919,149.43,149.39,6.6932]
[1746066719480,23.78,149.44,149.39,6.6932]
[1746066721176,23.78,149.44,149.36,23.78]
[1746066721583,23.78,149.47,149.36,23.78]
[1746066721782,6.6911,149.45,149.36,23.78]
[1746066722682,6.6913,149.44,149.41,6.6924]
[1746066723582,6.6911,149.45,149.42,6.6921]
[1746066724378,6.6905,149.46,149.36,23.78]
[1746066724682,23.78,149.47,149.36,23.78]
[1746066724880,23.78,149.47,149.42,6.6919]
[1746066725070,6.6909,149.45,149.42,6.6919]
[1746066725884,23.78,149.47,149.41,6.6923]
[1746066727287,23.78,149.47,149.4,6.6928]
[1746066728183,23.78,149.47,149.41,6.6926]
[1746066728184,6.6917,149.44,149.41,6.6926]
[1746066728685,23.78,149.47,149.41,6.6926]
[1746066729188,23.78,149.47,149.36,23.78]
[1746066729387,7.04915149,149.45,149.36,23.78]
[1746066729786,6.6924,149.42,149.39,6.6933]
[1746066731586,23.78,149.43,149.36,23.78]
[1746066732190,6.6935,149.4,149.37,6.6941]
[1746066732697,6.6937,149.39,149.36,30.4746]
[1746066732894,7.04915149,149.42,149.36,30.4746]
[1746066733296,7.04915149,149.42,149.36,6.6946]
[1746066733600,6.6938,149.39,149.36,6.6946]
[1746066734902,6.6938,149.39,149.37,6.6944]
[1746066735202,6.6938,149.39,149.35,1.924]
[1746066735401,6.6938,149.39,149.36,6.6947]
[1746066740599,6.6941,149.38,149.36,6.6947]
[1746066740803,7.04915149,149.42,149.36,6.6947]
[1746066741204,6.6938,149.39,149.36,6.6947]
[1746066741504,6.6938,149.39,149.35,1.924]
[1746066741505,7.04915149,149.42,149.35,6.6951]
[1746066743803,6.6947,149.37,149.34,6.6956]
[1746066744300,6.6949,149.36,149.34,6.6956]
[1746066745400,6.6949,149.36,149.33,6.696]
[1746066745805,23.78,149.39,149.3,23.78]
[1746066746002,7.04915149,149.42,149.3,23.78]
[1746066746212,23.78,149.46,149.37,7.04915149]
[1746066746505,30.4705,149.46,149.43,6.6915]
[1746066747606,6.6909,149.45,149.38,29.9509]
[1746066747806,23.78,149.46,149.38,29.9509]
[1746066748507,6.6915,149.44,149.4,6.6928]
[1746066749907,6.6917,149.43,149.4,6.6928]
[1746066750710,6.6922,149.42,149.39,6.6934]
[1746066751509,6.6927,149.41,149.38,10.7896]
[1746066751703,6.6927,149.41,149.38,8.7519]
[1746066752113,7.04915149,149.44,149.38,2.058]
[1746066752705,6.692,149.43,149.4,6.6927]
[1746066753011,7.04915149,149.44,149.38,2.058]
[1746066753914,6.6922,149.42,149.39,6.6932]
[1746066754106,7.04915149,149.44,149.39,6.6932]
[1746066755212,6.692,149.43,149.39,6.6932]
[1746066757312,6.692,149.43,149.4,6.693]
[1746066758311,6.6922,149.42,149.39,6.6933]
[1746066758907,6.6927,149.41,149.38,8.7518]
[1746066759210,23.78,149.42,149.34,1.9229]
[1746066759410,6.6939,149.39,149.36,6.6947]
[1746066760011,23.78,149.42,149.35,6.6951]
[1746066760208,7.04915149,149.41,149.35,6.6951]
[1746066760613,6.6942,149.38,149.35,6.6951]
[1746066764218,6.6942,149.38,149.36,6.6948]
[1746066764517,23.78,149.42,149.34,27.6745]
[1746066765021,6.693,149.41,149.34,27.6745]
[1746066765215,23.78,149.42,149.34,27.6745]
[1746066765721,30.4725,149.42,149.39,6.6932]
[1746066768021,6.6927,149.41,149.39,6.6932]
[1746066768922,6.6927,149.41,149.38,6.6938]
[1746066769427,6.6927,149.41,149.39,6.6935]
[1746066769725,30.4724,149.42,149.39,6.6935]
[1746066770023,6.6927,149.41,149.38,6.6937]
[1746066770325,6.6927,149.41,149.34,27.6745]
[1746066770520,30.4724,149.42,149.39,6.6934]
[1746066771025,23.78,149.42,149.39,6.6934]
[1746066771925,30.4723,149.42,149.39,6.6934]
[1746066776929,6.6926,149.41,149.39,6.6934]
[1746066777531,30.4723,149.42,149.39,6.6934]
[1746066778230,23.78,149.42,149.4,6.693]
[1746066779135,30.4722,149.42,149.39,6.6933]
[1746066779330,30.4722,149.42,149.36,23.78]
[1746066780436,30.4722,149.42,149.39,6.6931]
[1746066780736,6.6928,149.41,149.36,23.78]
[1746066781036,6.6928,149.41,149.38,6.6936]
[1746066781338,6.6928,149.41,149.36,23.78]
[1746066781736,30.4724,149.42,149.36,23.78]
[1746066782136,30.4724,149.42,149.39,6.6933]
[1746066782439,23.78,149.42,149.36,23.78]
[1746066782937,23.78,149.42,149.4,6.6928]
[1746066783234,6.6919,149.43,149.4,6.6928]
[1746066783633,6.6922,149.42,149.4,6.6928]
[1746066783936,32.90455149,149.45,149.4,6.6928]
[1746066784837,6.6919,149.43,149.4,6.6928]
[1746066787038,6.6922,149.42,149.4,6.6928]
[1746066787239,6.6922,149.42,149.39,6.6933]
[1746066787638,6.6922,149.42,149.4,6.6929]
[1746066788140,6.6919,149.43,149.4,6.6929]
[1746066789630,6.6922,149.42,149.4,6.6929]
[1746066789941,6.6922,149.42,149.39,6.6933]
[1746066790642,6.6922,149.42,149.4,6.693]
[1746066793245,6.6919,149.43,149.4,6.693]
[1746066795237,6.6922,149.42,149.4,6.693]
[1746066795749,6.6919,149.43,149.4,6.693]
[1746066800656,6.6922,149.42,149.4,6.693]
[1746066801256,6.6919,149.43,149.4,6.693]
[1746066802354,6.6922,149.42,149.4,6.693]
[1746066802559,32.90455149,149.45,149.36,23.78]
[1746066802858,6.693,149.41,149.36,23.78]
[1746066803057,6.693,149.41,149.37,6.6941]
[1746066803546,6.693,149.41,149.36,23.78]
[1746066803749,6.693,149.41,149.38,6.6939]
[1746066804554,6.6935,149.39,149.36,23.78]
[1746066804859,30.80915149,149.4,149.34,3.8945]
[1746066805159,6.6938,149.39,149.36,6.6944]
[1746066807061,6.694,149.38,149.36,6.6944]
[1746066809664,6.6945,149.37,149.34,1.9716]
[1746066810260,6.6945,149.37,149.34,8.667]
[1746066810567,6.6945,149.37,149.34,1.9716]
[1746066812066,6.6941,149.38,149.35,6.6952]
[1746066812868,30.80915149,149.4,149.34,8.6673]
[1746066812869,6.6946,149.37,149.34,8.6673]
[1746066815568,11.21459814,149.37,149.35,6.6952]
[1746066816465,11.21459814,149.37,149.34,6.6956]
[1746066817269,6.6951,149.36,149.33,6.6961]
[1746066817459,4.51999814,149.35,149.33,6.6961]
[1746066821173,11.21539814,149.35,149.32,6.6964]
[1746066823175,4.51999814,149.33,149.29,23.76]
[1746066823379,4.51999814,149.35,149.29,23.76]
[1746066823567,23.76,149.36,149.29,28.27999814]
[1746066823770,28.27999814,149.36,149.29,30.25949814]
[1746066824177,34.97509814,149.36,149.33,6.6961]
[1746066824479,4.51999814,149.38,149.31,4.51999814]
[1746066824980,6.6945,149.37,149.35,6.6953]
[1746066825380,4.51999814,149.38,149.31,4.51999814]
[1746066825878,4.51999814,149.38,149.33,4.51999814]
[1746066826078,4.51999814,149.38,149.34,2.1035]
[1746066826475,34.97379814,149.39,149.34,2.1035]